bitfinex/quotes_SOLUSD_20260314
["timestamp","ask_amount","ask_price","bid_price","bid_amount"]
[1773502749761,12.0086828,86.799,86.771,0.47264376]
[1773502750065,11.52087005,86.799,86.771,0.47264376]
[1773502750250,3.76395994,86.88,86.781,0.47264376]
[1773502750251,0.48781275,86.815,86.781,0.47264376]
[1773502750767,18.77512868,86.813,86.781,0.47264376]
[1773502751067,7.25607637,86.813,86.791,0.47264376]
[1773502751971,7.25607637,86.813,86.793,0.47264376]
[1773502754157,0.48781275,86.811,86.793,0.47264376]
[1773502757262,7.25607637,86.813,86.793,0.47264376]
[1773502757463,7.74388912,86.813,86.793,0.47264376]
[1773502757659,0.48781275,86.812,86.793,0.47264376]
[1773502758572,0.48781275,86.81,86.793,0.47264376]
[1773502766278,11.5195429,86.809,86.793,0.47264376]
[1773502766580,0.46056273,86.808,86.793,0.47264376]
[1773502769377,0.46056273,86.808,86.794,11.52153374]
[1773502769681,0.46056273,86.808,86.795,0.48110476]
[1773502770589,0.46056273,86.812,86.795,0.48110476]
[1773502776882,18.77509256,86.813,86.795,0.48110476]
[1773502777585,19.23565529,86.813,86.795,0.48110476]
[1773502777785,0.46056273,86.812,86.795,0.48110476]
[1773502781091,0.46056273,86.81,86.795,0.48110476]
[1773502781280,0.46056273,86.81,86.787,0.48110476]
[1773502781888,0.46056273,86.809,86.771,0.48110476]
[1773502782192,0.46056273,86.799,86.772,0.48110476]
[1773502783682,0.46056273,86.798,86.773,11.52432208]
[1773502783880,0.46056273,86.798,86.774,0.48110476]
[1773502786095,0.46056273,86.798,86.776,0.48110476]
[1773502786394,0.46056273,86.796,86.776,0.48110476]
[1773502788976,0.46056273,86.796,86.777,11.52379086]
[1773502789308,0.46056273,86.796,86.778,0.48110476]
[1773502796394,3.7638469,86.79,86.76,0.4975113]
[1773502796628,0.48759597,86.779,86.751,0.4975113]
[1773502797391,11.52360873,86.779,86.752,0.4975113]
[1773502797597,0.48759597,86.778,86.752,0.4975113]
[1773502798497,11.52286135,86.784,86.761,0.4975113]
[1773502800591,0.48759597,86.784,86.761,0.4975113]
[1773502804104,0.48759597,86.782,86.761,0.4975113]
[1773502807000,11.52325969,86.781,86.761,0.4975113]
[1773502807182,0.48759597,86.78,86.761,0.4975113]
[1773502820624,0.48759597,86.769,86.739,0.4975113]
[1773502820931,0.48759597,86.759,86.739,0.4975113]
[1773502821129,0.48759597,86.759,86.743,11.52821617]
[1773502821510,0.48759597,86.759,86.744,0.45521969]
[1773502822325,0.48759597,86.759,86.745,11.52804196]
[1773502822528,0.48759597,86.759,86.745,11.98326165]
[1773502824235,0.48759597,86.759,86.746,0.45521969]
[1773502828035,0.48759597,86.759,86.746,11.98311115]
[1773502829118,0.48602891,86.757,86.736,11.98437692]
[1773502829315,0.48602891,86.756,86.736,0.45521969]
[1773502829522,3.7638469,86.75,86.722,0.45521969]
[1773502829714,0.48602891,86.748,86.722,0.45521969]
[1773502830535,0.48602891,86.748,86.724,0.45521969]
[1773502830727,0.48602891,86.747,86.724,0.45521969]
[1773502831039,26.09804366,86.747,86.724,0.45521969]
[1773502831237,21.00011754,86.746,86.724,0.45521969]
[1773502832536,21.48614645,86.746,86.726,0.45521969]
[1773502832725,12.05862578,86.745,86.726,0.45521969]
[1773502835546,12.05862578,86.745,86.728,0.45521969]
[1773502835732,12.54465469,86.745,86.728,0.45521969]
[1773502836041,12.54465469,86.744,86.728,0.45521969]
[1773502836337,12.05862578,86.743,86.728,0.45521969]
[1773502836935,12.05862578,86.743,86.729,11.53016868]
[1773502837140,12.05862578,86.743,86.73,0.45521969]
[1773502838139,12.05862578,86.743,86.732,0.45521969]
[1773502847345,7.54790509,86.753,86.734,0.45521969]
[1773502848459,7.54790509,86.753,86.735,11.52937107]
[1773502848648,7.54790509,86.753,86.736,0.45521969]
[1773502849730,7.54790509,86.753,86.738,0.4724419]
[1773502852029,7.54790509,86.753,86.739,11.52883939]
[1773502852229,7.54790509,86.753,86.74,0.46118107]
[1773502853536,0.45520372,86.752,86.739,11.52883939]
[1773502853932,0.45520372,86.752,86.739,11.99002046]
[1773502854534,0.45520372,86.752,86.74,0.46118107]
[1773502855345,8.00909402,86.752,86.74,0.46118107]
[1773502855546,7.54017544,86.751,86.74,0.46118107]
[1773502859550,0.45520372,86.768,86.742,0.14238808]
[1773502861158,0.45520372,86.766,86.742,0.14238808]
[1773502862052,11.52538465,86.765,86.738,0.14238808]
[1773502862258,0.45520372,86.764,86.734,0.14238808]
[1773502863540,0.45520372,86.764,86.732,7.36]
[1773502863858,0.45520372,86.764,86.733,0.14238808]
[1773502864857,0.45520372,86.762,86.734,0.14238808]
[1773502867350,0.45520372,86.76,86.734,0.14238808]
[1773502891492,7.60962209,86.766,86.751,0.14238808]
[1773502891669,0.47174799,86.765,86.741,0.14238808]
[1773502893590,0.47174799,86.765,86.741,11.67096164]
[1773502894191,0.47174799,86.765,86.742,0.14238808]
[1773502896686,7.60962209,86.766,86.742,0.14238808]
[1773502896687,0.47174799,86.763,86.742,0.14238808]
[1773502901092,0.47174799,86.749,86.711,0.45513956]
[1773502901391,0.47174799,86.739,86.711,0.45513956]
[1773502902478,0.47174799,86.739,86.712,0.45513956]
[1773502904496,0.47174799,86.739,86.714,0.45513956]
[1773502905580,0.47174799,86.739,86.716,0.45513956]
[1773502906888,0.47174799,86.739,86.718,0.45513956]
[1773502907495,7.59214385,86.742,86.721,0.45513956]
[1773502907706,0.47174799,86.741,86.721,0.45513956]
[1773502908599,0.47174799,86.741,86.717,11.9869038]
[1773502909092,0.47174799,86.739,86.717,11.53176424]
[1773502909614,0.47174799,86.739,86.715,0.49722364]
[1773502911007,0.47174799,86.739,86.716,11.53189722]
[1773502912592,0.49989386,86.737,86.716,11.53189722]
[1773502915292,0.49989386,86.737,86.716,0.4929114]
[1773502918421,0.49989386,86.737,86.717,11.53176424]
[1773502919122,0.49989386,86.737,86.718,0.4929114]
[1773502921615,0.49989386,86.735,86.718,0.4929114]
[1773502943655,0.49989386,86.735,86.713,0.47110625]
[1773502944950,0.46299372,86.733,86.713,0.47110625]
[1773502945855,0.46299372,86.733,86.714,11.5321632]
[1773502946248,0.46299372,86.733,86.715,0.47110625]
[1773502948974,0.46299372,86.733,86.716,11.53189722]
[1773502949268,0.46299372,86.733,86.717,0.47110625]
[1773502964968,0.46299372,86.731,86.713,0.47110625]
[1773503004611,0.46299372,86.731,86.71,0.1]
[1773503004612,0.45576968,86.729,86.7,0.1]
[1773503004902,0.45576968,86.729,86.7,3.87097378]
[1773503006589,0.45576968,86.729,86.702,11.53375931]
[1773503006788,0.45576968,86.729,86.703,0.47811978]
[1773503008182,0.45576968,86.729,86.704,11.53349326]
[1773503008383,0.45576968,86.729,86.705,0.47811978]
[1773503011207,0.45576968,86.729,86.706,11.53322722]
[1773503011382,0.45576968,86.729,86.707,0.47811978]
[1773503014305,0.45576968,86.729,86.709,0.47811978]
[1773503016197,0.45576968,86.737,86.709,0.47811978]
[1773503016407,0.45576968,86.737,86.711,0.47811978]
[1773503017005,11.52923814,86.736,86.711,0.47811978]
[1773503017210,0.45576968,86.735,86.711,0.47811978]
[1773503020205,0.45576968,86.735,86.712,11.53242919]
[1773503021201,0.45576968,86.735,86.713,0.47811978]
[1773503022215,0.45576968,86.735,86.714,12.01028298]
[1773503022506,0.45576968,86.735,86.714,11.5321632]
[1773503022712,0.45576968,86.735,86.715,0.47811978]
[1773503032337,11.52837126,86.743,86.717,0.4636349]
[1773503034012,11.5275104,86.749,86.717,0.4636349]
[1773503034223,0.49731062,86.748,86.717,0.4636349]
[1773503035418,0.49731062,86.748,86.7,0.1]
[1773503035419,0.49731062,86.729,86.69,0.5636349]
[1773503035604,0.49731062,86.709,86.69,0.5636349]
[1773503042026,0.49731062,86.707,86.69,0.5636349]
[1773503054328,7.57521981,86.739,86.701,0.4636349]
[1773503055233,11.5289723,86.738,86.703,0.4636349]
[1773503055537,7.57521981,86.739,86.721,0.4636349]
[1773503056740,7.57521981,86.739,86.722,11.53109937]
[1773503057038,7.57521981,86.739,86.723,0.4636349]
[1773503059743,7.57521981,86.739,86.725,0.4636349]
[1773503068150,0.49558331,86.738,86.713,0.49567013]
[1773503070442,11.52910522,86.737,86.713,0.49567013]
[1773503070654,0.49558331,86.736,86.713,0.49567013]
[1773503071361,7.17521981,86.739,86.713,0.49567013]
[1773503071751,7.67080312,86.739,86.713,0.49567013]
[1773503071954,0.49558331,86.738,86.713,0.49567013]
[1773503072550,0.49558331,86.738,86.715,0.49567013]
[1773503077380,7.17521981,86.739,86.715,0.49567013]
[1773503078469,7.67080312,86.739,86.715,0.49567013]
[1773503081959,0.49558331,86.738,86.715,0.49567013]
[1773503097385,0.47305528,86.729,86.704,61.6]
[1773503098379,0.47305528,86.727,86.702,18.89364593]
[1773503099483,0.47305528,86.727,86.703,0.48918408]
[1773503101692,0.47305528,86.725,86.703,0.48918408]
[1773503109787,28.82276306,86.737,86.703,0.48918408]
[1773503109788,0.47305528,86.723,86.703,0.48918408]
[1773503110090,12.003397,86.728,86.711,0.48918408]
[1773503110989,7.17521981,86.739,86.721,0.48918408]
[1773503111178,0.47305528,86.738,86.721,0.48918408]
[1773503116198,18.70416144,86.739,86.721,0.48918408]
[1773503116397,7.36,86.769,86.715,11.53199798]
[1773503116398,0.47305528,86.764,86.731,0.48918408]
[1773503116601,0.47305528,86.764,86.741,0.48918408]
[1773503117686,11.52565033,86.763,86.741,0.48918408]
[1773503117882,0.47305528,86.762,86.741,0.48918408]
[1773503120699,0.47305528,86.76,86.741,0.48918408]
[1773503122418,11.52618172,86.759,86.741,0.48918408]
[1773503122794,12.01841366,86.759,86.741,0.48918408]
[1773503122995,0.49223194,86.758,86.741,0.48918408]
[1773503124095,12.01867937,86.757,86.741,0.48918408]
[1773503125511,0.49223194,86.756,86.741,0.48918408]
[1773503125889,0.49223194,86.749,86.714,0.47778579]
[1773503126110,0.49223194,86.737,86.705,0.47778579]
[1773503126604,0.49223194,86.737,86.7,3.76947497]
[1773503126812,0.49223194,86.729,86.708,0.47778579]
[1773503127504,0.49223194,86.727,86.708,0.47778579]
[1773503128113,0.49223194,86.727,86.709,20.59659112]
[1773503129317,12.02279947,86.726,86.71,0.47778579]
[1773503129710,0.49223194,86.725,86.71,0.47778579]
[1773503134815,0.49223194,86.744,86.711,0.47778579]
[1773503135022,11.52764328,86.748,86.721,0.47778579]
[1773503135318,12.01987522,86.748,86.721,0.47778579]
[1773503136107,11.52764328,86.748,86.721,0.47778579]
[1773503136325,0.49223194,86.747,86.721,0.47778579]
[1773503137323,11.52790906,86.746,86.721,0.47778579]
[1773503138325,11.52790906,86.746,86.723,0.47778579]
[1773503140018,11.52790906,86.746,86.724,11.53083344]
[1773503140330,11.52790906,86.746,86.731,0.47778579]
[1773503141422,11.52697889,86.753,86.731,0.47778579]
[1773503141615,12.01921083,86.753,86.731,0.47778579]
[1773503141925,12.01921083,86.753,86.732,0.47778579]
[1773503142309,0.49223194,86.752,86.732,0.47778579]
[1773503143538,11.52724464,86.751,86.732,0.47778579]
[1773503144607,0.49223194,86.75,86.732,0.47778579]
[1773503148926,0.49223194,86.748,86.727,0.47778579]
[1773503149130,0.49223194,86.748,86.722,11.53106927]
[1773503149131,0.49223194,86.748,86.722,0.47778579]
[1773503150332,0.49351193,86.746,86.722,0.47778579]
[1773503152316,11.52804196,86.745,86.722,0.47778579]
[1773503152518,0.45172052,86.744,86.722,0.47778579]
[1773503155320,11.52830775,86.743,86.722,0.47778579]
[1773503155630,0.45172052,86.742,86.722,0.47778579]
[1773503162338,11.52857356,86.741,86.722,0.47778579]
[1773503164538,0.45172052,86.741,86.722,0.47778579]
[1773503167336,11.52859075,86.741,86.722,0.47778579]
[1773503168622,0.45172052,86.741,86.722,0.47778579]
[1773503170427,11.98033304,86.741,86.722,0.47778579]
[1773503175144,0.45172052,86.74,86.722,0.47778579]
[1773503182854,0.46470068,86.738,86.722,0.47778579]
[1773503190758,0.46470068,86.742,86.722,0.47778579]
[1773503198258,0.46470068,86.771,86.731,0.45947874]
[1773503198457,0.46470068,86.77,86.751,0.45947874]
[1773503198948,0.46470068,86.77,86.75,3.76882831]
[1773503200366,0.46470068,86.768,86.746,7.36]
[1773503202050,0.46470068,86.768,86.741,0.45947874]
[1773503203367,0.46470068,86.766,86.74,3.76726079]
[1773503203663,0.46470068,86.766,86.74,4.22673953]
[1773503204251,0.46470068,86.766,86.741,0.45947874]
[1773503205549,0.46470068,86.764,86.741,0.45947874]
[1773503207665,0.46470068,86.762,86.741,0.45947874]
[1773503209469,0.46470068,86.762,86.75,3.76726079]
[1773503211954,0.46709992,86.76,86.741,0.45947874]
[1773503212170,0.46709992,86.759,86.724,7.36]
[1773503212761,0.46709992,86.759,86.724,7.822702]
[1773503214571,0.46709992,86.757,86.725,0.462702]
[1773503215977,0.46709992,86.749,86.724,7.36]
[1773503216270,0.46709992,86.749,86.72,3.76726079]
[1773503217268,0.46709992,86.747,86.72,3.76726079]
[1773503217576,0.46709992,86.747,86.72,4.22996279]
[1773503219575,0.46709992,86.745,86.711,0.462702]
[1773503224383,11.52817485,86.744,86.711,0.462702]
[1773503224576,0.46709992,86.743,86.711,0.462702]
[1773503227376,11.52844066,86.742,86.711,0.462702]
[1773503227582,0.46709992,86.741,86.711,0.462702]
[1773503230992,0.46709992,86.739,86.72,3.76726079]
[1773503232272,11.5289723,86.738,86.72,3.76726079]
[1773503232589,0.46709992,86.737,86.72,3.76726079]
[1773503233594,0.46709992,86.735,86.72,3.76726079]
[1773503236501,0.46709992,86.733,86.72,3.76726079]
[1773503239704,0.46709992,86.738,86.721,0.462702]
[1773503241200,0.46709992,86.738,86.72,3.76726079]
[1773503241507,0.46838045,86.736,86.72,4.22659396]
[1773503242004,0.46838045,86.736,86.721,0.45933317]
[1773503245402,11.52937107,86.735,86.721,0.45933317]
[1773503245707,0.46838045,86.734,86.721,0.45933317]
[1773503248503,11.52963693,86.733,86.721,0.45933317]
[1773503249988,0.46838045,86.732,86.72,3.76726079]
[1773503261619,0.46838045,86.732,86.72,3.76889857]
[1773503266397,0.46838045,86.729,86.691,7.36]
[1773503266615,0.46838045,86.727,86.69,3.86889857]
[1773503266809,0.46838045,86.727,86.69,0.1]
[1773503267001,0.46838045,86.727,86.691,0.45933317]
[1773503267207,11.99828325,86.731,86.711,0.45933317]
[1773503267403,11.5299028,86.731,86.711,0.45933317]
[1773503267610,0.46838045,86.73,86.711,0.45933317]
[1773503268426,11.53016868,86.729,86.711,0.45933317]
[1773503268720,0.46838045,86.728,86.711,0.45933317]
[1773503272426,28.82143503,86.741,86.711,0.45933317]
[1773503272427,11.98190887,86.727,86.711,0.45933317]
[1773503273821,11.53043458,86.727,86.711,0.45933317]
[1773503274022,0.45147429,86.726,86.711,0.45933317]
[1773503274729,11.53070049,86.725,86.711,0.45933317]
[1773503275906,0.45147429,86.725,86.711,0.45933317]
[1773503276112,0.45147429,86.725,86.692,7.36]
[1773503276113,3.76889857,86.72,86.692,7.8285852]
[1773503276416,0.45147429,86.719,86.692,7.8285852]
[1773503276923,0.45147429,86.719,86.692,7.36]
[1773503277119,28.82143503,86.741,86.68,0.1]
[1773503277120,0.45147429,86.709,86.68,0.1]
[1773503278319,0.45147429,86.707,86.68,0.5685852]
[1773503279623,0.45147429,86.705,86.68,0.5685852]
[1773503287438,0.45147429,86.703,86.68,0.5685852]
[1773503288939,0.45147429,86.703,86.681,0.4685852]
[1773503289136,0.45147429,86.718,86.691,0.4685852]
[1773503290239,11.53176424,86.717,86.691,0.4685852]
[1773503290451,0.45147429,86.716,86.691,0.4685852]
[1773503293531,11.9835045,86.715,86.691,0.4685852]
[1773503294746,0.45147429,86.714,86.691,0.4685852]
[1773503296460,0.45147429,86.712,86.691,0.4685852]
[1773503301444,0.49011944,86.71,86.691,0.4685852]
[1773503304553,28.82635149,86.727,86.691,0.4685852]
[1773503304554,0.49011944,86.708,86.691,0.4685852]
[1773503309963,0.49011944,86.706,86.685,0.48073756]
[1773503311448,11.53336024,86.705,86.685,0.48073756]
[1773503313959,0.49011944,86.705,86.685,0.48073756]
[1773503316842,0.49011944,86.703,86.685,0.48073756]
[1773503321570,11.53375931,86.702,86.685,0.48073756]
[1773503326570,0.49011944,86.701,86.68,11.23238075]
[1773503328480,0.49011944,86.718,86.69,3.77238075]
[1773503328787,0.49011944,86.716,86.69,4.12033519]
[1773503332259,11.53203021,86.715,86.69,4.12033519]
[1773503332459,0.45029506,86.714,86.69,4.12033519]
[1773503334283,0.45029506,86.714,86.691,0.34795444]
[1773503338371,0.45029506,86.712,86.691,0.34795444]
[1773503340389,0.45029506,86.71,86.69,3.77238075]
[1773503344092,7.36,86.728,86.691,0.34795444]
[1773503344278,0.45029506,86.726,86.701,0.34795444]
[1773503344475,0.45029506,86.726,86.711,0.34795444]
[1773503344679,0.45029506,86.726,86.701,0.34795444]
[1773503346889,0.45029506,86.724,86.701,0.34795444]
[1773503348186,0.45029506,86.724,86.7,3.77238075]
[1773503348577,0.45029506,86.724,86.701,0.34795444]
[1773503350598,0.45029506,86.722,86.701,0.34795444]
[1773503353602,0.45029506,86.72,86.701,0.34795444]
[1773503356699,0.45029506,86.718,86.701,0.34795444]
[1773503357987,0.45029506,86.722,86.701,0.34795444]
[1773503364106,0.48724064,86.728,86.703,0.34795444]
[1773503364311,0.48724064,86.745,86.711,0.34795444]
[1773503365611,0.48724064,86.743,86.711,0.34795444]
[1773503366720,0.48724064,86.743,86.713,0.34795444]
[1773503367793,40.34861199,86.744,86.721,0.34795444]
[1773503367794,11.52844066,86.742,86.721,0.34795444]
[1773503368210,12.0156813,86.742,86.721,0.34795444]
[1773503370615,0.48724064,86.741,86.721,0.34795444]
[1773503371512,11.52870647,86.74,86.721,0.34795444]
[1773503371699,12.01594711,86.74,86.721,0.34795444]
[1773503372515,11.52870647,86.74,86.721,0.34795444]
[1773503372715,0.48724064,86.739,86.721,0.34795444]
[1773503373714,0.48724064,86.737,86.721,0.34795444]
[1773503374797,28.81718181,86.754,86.704,61.6]
[1773503374798,0.48724064,86.735,86.704,61.6]
[1773503375137,0.48724064,86.729,86.704,61.6]
[1773503375312,0.48724064,86.729,86.705,0.34795444]
[1773503377413,11.53030163,86.728,86.705,0.34795444]
[1773503377616,0.48724064,86.727,86.705,0.34795444]
[1773503383119,11.53056753,86.726,86.705,0.34795444]
[1773503383307,0.48724064,86.725,86.705,0.34795444]
[1773503386309,11.53083344,86.724,86.705,0.34795444]
[1773503386521,0.48724064,86.723,86.705,0.34795444]
[1773503391325,11.53109937,86.722,86.705,0.34795444]
[1773503391727,11.99019169,86.722,86.705,0.34795444]
[1773503395226,0.45909232,86.721,86.705,0.34795444]
[1773503396325,0.45909232,86.719,86.672,7.36]
[1773503396624,0.45909232,86.709,86.674,0.34795444]
[1773503397118,0.45909232,86.709,86.679,0.34795444]
[1773503398436,0.45909232,86.707,86.679,0.34795444]
[1773503399925,0.45909232,86.705,86.68,3.87051377]
[1773503400710,0.45909232,86.705,86.681,0.34795444]
[1773503404519,11.53349326,86.704,86.681,0.34795444]
[1773503404717,0.45909232,86.703,86.681,0.34795444]
[1773503405740,0.45909232,86.718,86.691,0.34795444]
[1773503407249,0.45909232,86.732,86.71,3.77051377]
[1773503407541,0.45909232,86.732,86.705,0.34795444]
[1773503409938,11.5299028,86.731,86.705,0.34795444]
[1773503410239,0.45909232,86.73,86.705,0.34795444]
[1773503411438,0.45909232,86.728,86.705,0.34795444]
[1773503412940,0.45909232,86.735,86.705,0.34795444]
[1773503415937,11.529504,86.734,86.705,0.34795444]
[1773503416134,0.45909232,86.733,86.705,0.34795444]
[1773503417145,0.45909232,86.733,86.707,0.34795444]
[1773503417549,0.45909232,86.733,86.711,0.34795444]
[1773503419439,0.45909232,86.731,86.711,0.34795444]
[1773503429856,0.45909232,86.731,86.712,0.34795444]
[1773503432887,0.49207197,86.737,86.714,0.34795444]
[1773503433067,0.49207197,86.736,86.714,0.34795444]
[1773503436686,11.52937107,86.735,86.714,0.34795444]
[1773503436874,0.49207197,86.734,86.714,0.34795444]
[1773503437383,28.81791782,86.752,86.721,0.46787261]
[1773503437572,28.8181116,86.751,86.721,0.46787261]
[1773503439487,0.49207197,86.748,86.721,0.46787261]
[1773503440687,28.8181116,86.751,86.721,0.46787261]
[1773503440688,0.49207197,86.746,86.721,0.46787261]
[1773503441492,0.49207197,86.75,86.731,0.46787261]
[1773503441875,0.49207197,86.75,86.72,3.77051377]
[1773503442074,0.49207197,86.75,86.721,0.46787261]
[1773503443590,11.5275104,86.749,86.721,0.46787261]
[1773503443800,0.49207197,86.748,86.721,0.46787261]
[1773503445089,0.49207197,86.746,86.731,0.46787261]
[1773503445293,0.49207197,86.758,86.731,0.46787261]
[1773503447985,0.49207197,86.756,86.731,0.46787261]
[1773503450700,0.48948665,86.754,86.731,0.46787261]
[1773503451574,0.47565808,86.739,86.697,7.36]
[1773503451779,0.47565808,86.739,86.7,3.76838376]
[1773503452383,0.47565808,86.739,86.71,3.76838376]
[1773503453805,0.47565808,86.737,86.711,0.3721538]
[1773503454807,0.47565808,86.735,86.711,0.3721538]
[1773503457705,0.47565808,86.735,86.712,0.3721538]
[1773503458404,11.52817485,86.744,86.721,0.48488223]
[1773503460409,11.52844066,86.742,86.721,0.48488223]
[1773503461304,11.52844066,86.742,86.73,3.76838376]
[1773503462709,0.47565808,86.742,86.73,3.76838376]
[1773503464615,12.00418576,86.742,86.73,3.76838376]
[1773503465689,11.52852768,86.742,86.731,0.48488223]
[1773503466112,0.47565808,86.755,86.731,0.48488223]
[1773503466301,0.47565808,86.755,86.741,0.48488223]
[1773503466809,28.81324045,86.766,86.732,0.48488223]
[1773503466810,0.47565808,86.753,86.732,0.48488223]
[1773503470416,11.52684602,86.754,86.734,0.48488223]
[1773503470714,11.52684602,86.754,86.733,11.52963693]
[1773503470715,11.52684602,86.754,86.741,0.48488223]
[1773503476020,0.47565808,86.757,86.741,0.48488223]
[1773503476327,11.52658029,86.756,86.741,0.48488223]
[1773503478307,0.47565808,86.756,86.741,0.48488223]
[1773503480523,0.47565808,86.763,86.741,0.48488223]
[1773503482024,0.49609128,86.773,86.751,0.46758841]
[1773503482227,0.49609128,86.779,86.761,0.46758841]
[1773503482409,0.49609128,86.779,86.761,0.34678796]
[1773503482607,11.52431584,86.774,86.761,0.34678796]
[1773503483435,11.52431584,86.774,86.76,3.76838376]
[1773503483436,0.49609128,86.773,86.75,3.76838376]
[1773503484309,11.52445489,86.772,86.75,3.76838376]
[1773503484520,0.49609128,86.771,86.75,3.76838376]
[1773503486627,0.49609128,86.769,86.746,7.36]
[1773503487134,0.49609128,86.769,86.74,3.76838376]
[1773503487325,0.49609128,86.769,86.739,11.52879613]
[1773503488037,0.49609128,86.769,86.738,0.46758841]
[1773503488038,0.49609128,86.767,86.741,0.46758841]
[1773503488219,0.49609128,86.767,86.75,4.23597217]
[1773503491634,0.49609128,86.765,86.75,4.23597217]
[1773503492422,11.52525182,86.766,86.751,0.46758841]
[1773503493224,0.49609128,86.767,86.751,0.46758841]
[1773503493620,12.02123216,86.767,86.751,0.46758841]
[1773503496045,0.49609128,86.789,86.761,0.46758841]
[1773503496251,2.87e-06,86.771,86.77,3.76838376]
[1773503496633,0.49609128,86.788,86.752,11.52711176]
[1773503496634,0.49609128,86.788,86.76,3.76838376]
[1773503496944,0.2,86.79,86.77,3.76838376]
[1773503497147,0.2,86.79,86.78,1.152e-05]
[1773503498244,0.2,86.79,86.776,2.35e-06]
[1773503498425,0.2,86.79,86.78,1.152e-05]
[1773503498849,0.5,86.789,86.78,1.152e-05]
[1773503499842,0.5,86.789,86.77,3.76838376]
[1773503500546,0.5,86.789,86.78,1.153e-05]
[1773503501135,0.5,86.789,86.77,15.29302973]
[1773503502335,0.5,86.789,86.78,3.76838376]
[1773503502548,7.6645999,86.797,86.78,3.76838376]
[1773503502849,7.6645999,86.797,86.78,3.58941199]
[1773503503455,8.1645999,86.797,86.78,3.58941199]
[1773503504237,0.5,86.796,86.78,3.58941199]
[1773503504439,0.5,86.795,86.771,61.6]
[1773503505255,0.5,86.795,86.77,3.76838376]
[1773503505664,0.5,86.793,86.77,3.76472717]
[1773503506251,7.6645999,86.797,86.78,7.42e-06]
[1773503506455,7.6645999,86.797,86.79,7.42e-06]
[1773503507264,7.6645999,86.797,86.78,7.42e-06]
[1773503508562,7.6645999,86.797,86.79,3.76472717]
[1773503509661,7.6645999,86.797,86.78,3.76472717]
[1773503509860,7.6645999,86.797,86.79,3.76472717]
[1773503511351,7.6645999,86.797,86.78,3.76472717]
[1773503511756,8.1645999,86.797,86.78,3.76472717]
[1773503513469,8.1645999,86.797,86.781,11.52325969]
[1773503515669,8.1645999,86.797,86.783,11.52299413]
[1773503516074,0.5,86.797,86.783,11.52299413]
[1773503516672,0.5,86.805,86.79,3.76472717]
[1773503516861,0.7,86.81,86.79,3.76472717]
[1773503517061,0.7,86.81,86.8,3.76472717]
[1773503517279,0.2,86.81,86.8,3.76472717]
[1773503519355,0.2,86.81,86.794,11.52142103]
[1773503519975,0.5,86.809,86.79,15.28677938]
[1773503521587,0.5,86.808,86.79,15.28677938]
[1773503525282,0.2,86.81,86.79,15.28677938]
[1773503525483,0.2,86.82,86.8,3.76472717]
[1773503525686,0.2,86.83,86.811,0.45481081]
[1773503525863,8.82696494,86.833,86.811,0.45481081]
[1773503527670,0.49721231,86.832,86.811,0.45481081]
[1773503528280,0.49721231,86.832,86.813,0.45481081]
[1773503528491,0.49721231,86.832,86.812,11.51914481]
[1773503528492,0.49721231,86.842,86.821,0.45481081]
[1773503528801,0.49721231,86.847,86.831,0.45481081]
[1773503531200,0.49721231,86.845,86.831,0.45481081]
[1773503531707,11.51440304,86.848,86.831,0.45481081]
[1773503532291,0.49721231,86.849,86.831,0.45481081]
[1773503534096,7.9016278,86.846,86.831,0.45481081]
[1773503534999,0.49721231,86.839,86.804,11.52012137]
[1773503536206,0.49721231,86.837,86.804,11.52012137]
[1773503536700,0.49721231,86.837,86.799,11.52078385]
[1773503536911,0.49721231,86.829,86.794,0.45481081]
[1773503538309,0.49721231,86.827,86.8,3.76472717]
[1773503538509,0.49721231,86.827,86.801,0.45481081]
[1773503539693,0.49721231,86.827,86.811,0.45481081]
[1773503540221,0.49721231,86.847,86.811,0.45481081]
[1773503540395,0.49721231,86.847,86.821,0.45481081]
[1773503541195,0.49721231,86.847,86.83,3.76472717]
[1773503544431,0.49721231,86.847,86.827,0.45481081]
[1773503545223,0.49721231,86.847,86.83,3.76472717]
[1773503545429,0.49721231,86.847,86.831,11.51662424]
[1773503550131,0.49721231,86.847,86.831,11.98813626]
[1773503550605,0.49721231,86.847,86.831,0.47151202]
[1773503551026,0.2,86.85,86.831,11.98813626]
[1773503551227,0.2,86.86,86.841,0.47151202]
[1773503551524,0.46091043,86.858,86.83,3.76472717]
[1773503552025,0.46091043,86.858,86.831,0.47151202]
[1773503552728,0.46091043,86.858,86.83,3.76472717]
[1773503552911,11.51317683,86.857,86.826,11.5171894]
[1773503553117,0.46091043,86.856,86.826,11.5171894]
[1773503553630,0.46091043,86.856,86.827,0.47151202]
[1773503554208,0.46091043,86.856,86.821,11.98939831]
[1773503554809,0.46091043,86.854,86.822,0.47151202]
[1773503557730,3.96472717,86.86,86.823,73.58919742]
[1773503557731,0.46091043,86.852,86.823,73.58919742]
[1773503560718,0.46091043,86.85,86.823,11.98919742]
[1773503560917,0.46091043,86.849,86.82,0.47151202]
[1773503561813,0.46091043,86.849,86.815,0.47151202]
[1773503562019,0.46091043,86.849,86.819,0.47151202]
[1773503564137,3.76472717,86.85,86.815,11.51866069]